Cogmind - Beta 10.2 @@@ ROGUE MODE // 2020.11.06 @ 19:55:30 // Halloween2020/ForbiddenLore Player: Demise Result: Destroyed by P-70 Sage with High-powered Shock Rifle Performance ------------- Evolutions (6) 3000 Regions Visited (23) 4600 Robots Destroyed (252) 1260 Value Destroyed (8583) 8583 Prototype IDs (53) 1060 Alien Tech Used (0) 0 Bonus (-6902) -6902 TOTAL SCORE: 11601 Bonus ------- Triggered High Security 500 High Alert Combat Kills 581 Follower Combat Kills 2404 Entered Garrisons 200 Used RIF Installer 500 Network Hubs Disabled 200 Aligned with FarCom 300 Met Data Miner 300 Built Enhanced Grunts 300 A7 Reached Mainframe 300 Friendly Fire -12487 Cogmind --------- Core Integrity 0/1150 Matter 112/300 Energy 100/100 System Corruption 10% Temperature Cool (0) Movement Core (50) Location -4/Factory Parts ------- > --- POWER (3) -------- (None) > --- PROPULSION (5) --- (None) > --- UTILITY (9) ------ Advanced Signal Interpreter Advanced Terrain Scan Processor Improved Hacking Suite Advanced System Shield > --- WEAPON (2) ------- (None) > --- INVENTORY (4) ---- Improved Energy Well (600) YI-UF0's Bottomless Matter Pit (1212) Experimental Sensor Array Force Lance Peak State ------------ > --- POWER ------------ Micro Fission Core Micro Fission Core > --- PROPULSION ------- Armored Medium Treads Heavy Treads Armored Heavy Treads > --- UTILITY ---------- High-capacity Storage Unit High-capacity Storage Unit High-capacity Storage Unit High-capacity Storage Unit Centrium Medium Armor Plating Centrium Medium Armor Plating Improved Hacking Suite Advanced System Shield > --- WEAPON ----------- Advanced Variable Charge Gun Advanced Variable Charge Gun > --- INVENTORY -------- Quantum Reactor Quantum Reactor Heavy Treads Nuclear Pulse Thruster Advanced Heat Sink High-capacity Storage Unit High-capacity Storage Unit High-capacity Storage Unit Improved Energy Well YI-UF0's Bottomless Matter Pit Experimental Sensor Array Advanced Signal Interpreter Long-range Terrain Scanner Advanced Terrain Scan Processor Hardened Heavy Armor Plating Improved Hacking Suite Improved System Shield Advanced System Shield Relay Coupler [NC] Relay Coupler [Swarmer] Relay Coupler [Swarmer] Relay Coupler [Swarmer] Relay Coupler [Sentry] Dispersion Rifle Advanced Variable Charge Gun Long-range Proton Cannon Improved KE Penetrator Improved Remote Datajack Phasing Sabre [Rating: 110] Favorites ----------- Power Antimatter Reactor Engine Cooled Ion Engine Power Core Micro Fission Core Reactor Antimatter Reactor Propulsion Light Treads Treads Light Treads Leg Aluminum Leg Wheel Armored Huge Wheel Flight Unit Nuclear Pulse Thruster Utility High-capacity Storage Unit Device System Backup Module Storage High-capacity Storage Unit Processor Advanced Targeting Computer Hackware System Shield Protection Improved Light Armor Plating Weapon EM Pulse Cannon Energy Gun Small Laser Energy Cannon EM Pulse Cannon Ballistic Gun Gauss Rifle Ballistic Cannon Bore Cannon Launcher Shock Bomb Launcher Special Weapon Improved Remote Datajack Slashing Weapon Ripper Piercing Weapon Force Lance Special Melee Weapon Improved Datajack Build | -11 -10 -10 -10 -9 -8 -8 -8 -7 -7 -7 -6 -6 -6 -6 -5 -5 -5 -5 -5 -5 -5 -5 -4 ------- Run | Scr Mat Min Exi Min Mat Gar Mat Fac Was Fac Fac Low Low Dat Pro Fac Was Fac Ext Cet Arc Hub Fac Slots Evolved 12 | . . . . . 4 . . 2 . . 2 . . . . 2 . . . . . . 2 Power 2 | . . . . . . . . . . . . . . . . 1 . . . . . . 1 Propulsion 3 | . . . . . . . . . . . 2 . . . . 1 . . . . . . . Utility 7 | . . . . . 4 . . 2 . . . . . . . . . . . . . . 1 Weapon . | . . . . . . . . . . . . . . . . . . . . . . . . Parts Attached 343 | 1 . . 1 9 48 12 24 1 16 26 9 6 6 . 6 16 24 17 38 9 6 23 45 Power 32 | . . . . 1 3 1 1 . 2 . . 1 . . 1 1 4 1 5 2 . 3 6 Engine 6 | . . . . 1 2 1 1 . . . . . . . . . . . . 1 . . . Core 13 | . . . . . 1 . . . . . . . . . . . 1 1 5 1 . 3 1 Reactor 13 | . . . . . . . . . 2 . . 1 . . 1 1 3 . . . . . 5 Propulsion 76 | . . . . 2 2 . 6 . 8 3 4 2 2 . 3 7 15 4 6 1 3 2 6 Treads 59 | . . . . 2 2 . 6 . 8 2 4 2 2 . 3 1 8 4 6 1 3 2 3 Leg 4 | . . . . . . . . . . . . . . . . 3 1 . . . . . . Wheel 4 | . . . . . . . . . . 1 . . . . . 3 . . . . . . . Hover . | . . . . . . . . . . . . . . . . . . . . . . . . Flight 9 | . . . . . . . . . . . . . . . . . 6 . . . . . 3 Utility 97 | 1 . . 1 . 18 6 1 1 3 12 5 . 3 . . 1 2 7 9 3 1 5 18 Device 19 | . . . . . 1 . . . . 5 1 . 1 . . . . 3 4 . . 1 3 Storage 29 | 1 . . 1 . 12 2 . 1 1 . 3 . 2 . . . 1 . 2 . . . 3 Processor 6 | . . . . . . 1 . . . . 1 . . . . 1 . . . 1 . . 2 Hackware 17 | . . . . . 1 . . . 1 3 . . . . . . 1 2 1 . 1 . 7 Protection 26 | . . . . . 4 3 1 . 1 4 . . . . . . . 2 2 2 . 4 3 Artifact . | . . . . . . . . . . . . . . . . . . . . . . . . Weapon 138 | . . . . 6 25 5 16 . 3 11 . 3 1 . 2 7 3 5 18 3 2 13 15 Energy Gun 21 | . . . . 2 4 . . . . 1 . 1 . . . 2 . . 3 2 . 2 4 Energy Cannon 18 | . . . . . 5 2 6 . . 1 . . 1 . . . . . . . . 1 2 Ballistic Gun 48 | . . . . 3 10 2 5 . . 4 . . . . 1 3 . 2 9 1 1 4 3 Ballistic Cannon 3 | . . . . . 2 . . . . . . . . . . . . . 1 . . . . Launcher 7 | . . . . . . 1 1 . . . . 2 . . 1 . . 1 . . . 1 . Special Weapon 11 | . . . . 1 4 . . . . . . . . . . . . 1 2 . . 2 1 Impact Weapon . | . . . . . . . . . . . . . . . . . . . . . . . . Slashing Weapon 17 | . . . . . . . 4 . 2 3 . . . . . 2 2 . . . . 1 3 Piercing Weapon 8 | . . . . . . . . . . . . . . . . . . 1 3 . 1 2 1 Special Melee Weapon 5 | . . . . . . . . . 1 2 . . . . . . 1 . . . . . 1 Unidentified Prototypes 19 | . . . . . 7 . . . . 1 1 . . . . 3 . . 2 4 . . 1 Parts Lost 82 | . . . . 2 1 . 6 . 2 9 . 1 3 . 8 2 2 1 6 . . 11 28 Power 10 | . . . . . . . . . . . . 1 . . 1 . 1 . 1 . . . 6 Propulsion 26 | . . . . . . . 2 . 1 2 . . 2 . 4 2 1 . 2 . . 3 7 Utility 19 | . . . . . . . 1 . . 4 . . 1 . . . . 1 1 . . 3 8 Weapon 27 | . . . . 2 1 . 3 . 1 3 . . . . 3 . . . 2 . . 5 7 Highest Loss Streak 20 | . . . . 2 1 . 5 . 2 5 . 1 3 . 5 1 2 1 4 . . 7 20 Average Slot Usage (%) 85 | . 100 100 86 84 93 93 89 76 82 70 82 90 99 100 86 88 88 88 85 84 86 86 63 Engine 3 | . 14 14 14 14 3 9 9 7 . . . . . . . . . . . . . . . Core 2 | . . . . . 5 . . . . . . . . . . . 3 5 10 11 11 10 2 Reactor 2 | . . . . . . . . . 5 7 6 6 6 6 6 9 5 5 . . . . 6 Treads 13 | . . . . 7 18 18 17 15 14 4 21 26 25 26 19 9 10 17 16 13 15 16 9 Leg 2 | . 28 28 28 20 . . . . . . . . . . . 8 1 . . . . . . Wheel 1 | . . . . . . . . . . 4 1 . . . . . 4 . . . . . . Device 1 | . . . . . . . . . . 6 2 6 6 6 6 1 . . . . . . 1 Storage 22 | . 28 28 15 14 28 21 27 23 23 23 23 20 25 26 26 23 23 23 23 23 23 23 18 Processor 2 | . . . . . . 8 9 7 7 1 . . . . . 3 5 2 . . . . 2 Hackware 10 | . . . . . 5 9 8 . 7 7 20 20 20 20 20 17 17 17 19 17 17 16 13 Protection 3 | . . . . . 13 9 . 7 6 3 . . . . . . . 1 . 4 5 5 1 Energy Gun 3 | . 28 28 28 14 5 . . . . . . . 6 6 . 1 . . . 7 . . . Energy Cannon 2 | . . . . . 3 17 7 . . . . . 5 6 . . . . . . . . 1 Ballistic Gun 3 | . . . . 13 6 . 8 15 . 1 . . . . 6 5 . . 3 1 4 5 1 Slashing Weapon 2 | . . . . . . . 1 . 6 6 6 5 . . . 2 5 3 . . . . . Naked Turns . | . . . . . . . . . . . . . . . . . . . . . . . . Heaviest Build 209 | 15 15 15 87 90 151 164 164 163 167 188 195 172 172 155 149 166 160 169 171 159 157 162 209 Greatest Support 167 | 20 20 20 20 40 42 42 42 40 50 47 60 88 88 68 97 76 163 167 167 163 158 158 100 Greatest Overweight (x) 51 | . . . 4 4 3 3 7 4 4 6 5 2 2 2 5 10 51 1 1 1 1 2 6 Average Overweight (x) 2 | . . . 3 3 2 2 3 4 3 3 3 1 1 2 2 2 1 . . . . . . Largest Inventory Capacity 60 | 8 8 8 24 24 40 40 40 60 40 40 48 40 40 36 36 36 36 36 36 36 36 36 44 Average Capacity 33 | 7 8 8 22 24 27 27 40 40 39 40 44 40 35 36 36 36 36 36 36 36 36 36 29 Most Carried 40 | 8 8 8 18 24 36 40 40 38 40 40 38 40 40 36 36 36 36 36 36 36 36 36 31 Average Carried 32 | 6 8 8 13 21 26 26 39 36 38 38 36 39 35 36 35 35 35 35 35 35 35 35 22 Final Capacity 40 | 8 8 8 24 24 36 40 40 40 40 40 40 40 36 36 36 36 36 36 36 36 36 36 4 Final Carried 40 | 8 8 8 18 24 36 40 38 36 40 37 36 40 36 36 35 36 36 36 36 36 36 29 4 Class Distribution -------------------- 55% | Bothacker-Mutant 33% | Hauler-Mutant 6% | Hacker-Mutant 3% | Mutant Dominant Class ---------------- Mutant | -10/Materials Mutant | -10/Mines Hauler-Mutant | -10/Exiles Hauler-Mutant | -9/Mines Hauler-Mutant | -8/Materials Hauler-Mutant | -8/Garrison Bothacker-Mutant | -8/Materials Bothacker-Mutant | -7/Factory Bothacker-Mutant | -7/Waste Bothacker-Mutant | -7/Factory Bothacker-Mutant | -6/Factory Bothacker-Mutant | -6/Lower Caves Bothacker-Mutant | -6/Lower Caves Bothacker-Mutant | -6/Data Miner Bothacker-Mutant | -5/Proximity Caves Bothacker-Mutant | -5/Factory Bothacker-Mutant | -5/Waste Bothacker-Mutant | -5/Factory Bothacker-Mutant | -5/Extension Hauler-Mutant | -5/Cetus Hacker-Mutant | -5/Archives Hacker-Mutant | -5/Hub_04(d) Hacker-Mutant | -4/Factory Resources | -11 -10 -10 -10 -9 -8 -8 -8 -7 -7 -7 -6 -6 -6 -6 -5 -5 -5 -5 -5 -5 -5 -5 -4 ----------- Run | Scr Mat Min Exi Min Mat Gar Mat Fac Was Fac Fac Low Low Dat Pro Fac Was Fac Ext Cet Arc Hub Fac Matter Collected 7990 | 210 . . 10 178 1221 1123 828 . 170 642 70 174 70 . 100 205 324 283 1087 222 115 681 277 Remotely . | . . . . . . . . . . . . . . . . . . . . . . . . Salvage Created 11608 | 181 27 . . 495 1244 974 1453 . 580 856 96 320 313 . 90 121 1053 396 1102 227 99 1609 372 Parts 557 | 16 4 . . 17 62 51 77 . 26 59 7 14 7 . 3 10 43 22 27 10 8 75 19 Haulers Intercepted 8 | . . . . . 4 . 2 . . . . . . . . . . 1 . . . 1 . Recyclers Shooed 8 | . . . . . 1 . . . . 1 . . . . . 3 . 2 . . . 1 . Parts Field Recycled . | . . . . . . . . . . . . . . . . . . . . . . . . Retrieved Matter . | . . . . . . . . . . . . . . . . . . . . . . . . Parts Self-Destructed 8 | . . . . . . . . . . . . 2 2 . 4 . . . . . . . . Prevented 18 | . . . . . . . . . . . . 11 4 . 3 . . . . . . . . Kills | -11 -10 -10 -10 -9 -8 -8 -8 -7 -7 -7 -6 -6 -6 -6 -5 -5 -5 -5 -5 -5 -5 -5 -4 ------- Run | Scr Mat Min Exi Min Mat Gar Mat Fac Was Fac Fac Low Low Dat Pro Fac Was Fac Ext Cet Arc Hub Fac Combat Hostiles Destroyed 149 | . . . . 1 20 17 24 . . 18 4 7 5 . 1 2 . 8 14 2 . 16 10 Melee 17 | . . . . . . . . . . 9 4 . . . . . . 1 . . . . 3 Guns 73 | . . . . 1 13 1 15 . . 9 . 1 1 . . 2 . 2 9 1 . 13 5 Cannons 29 | . . . . . 7 12 2 . . . . . 2 . . . . . 5 1 . . . AOE 23 | . . . . . . 4 6 . . . . 5 . . . . . 5 . . . 3 . Classes Destroyed 18 | 2 1 . . 2 6 1 2 . 1 1 . . . . . . 1 . 1 . . . . Worker 17 | . . . . 4 . . 1 . . . . . . . . . . . 1 . . 11 . Builder 9 | . . . . . 1 . 2 . . . . . . . . 1 . 1 . . . 4 . Tunneler 7 | 5 . . . 2 . . . . . . . . . . . . . . . . . . . Hauler 8 | . . . . . 4 . 2 . . . . . . . . . . 1 . . . 1 . Recycler 7 | 1 . . . 3 . . 1 . . . . . . . . . . . 1 . . 1 . Operator 6 | . . . . . 1 . 1 . . . . . . . . . . . 1 . 3 . . Watcher 12 | . 1 . . . 3 1 4 . . . . . . . . . . 2 . 1 . . . Swarmer 41 | . . . . . 6 4 2 . . 1 4 3 1 . . . . 5 . 1 . 7 7 Grunt 44 | . . . . . 8 6 9 . . 5 . 3 3 . . . . . 6 . . 3 1 Brawler 4 | . . . . . . . 2 . . 1 . . . . . . . . . . . 1 . Duelist 4 | . . . . 1 . . 1 . . 1 . . . . . . . . . . . 1 . Protector 1 | . . . . . . . 1 . . . . . . . . . . . . . . . . Sentry 30 | . . . . . 6 5 6 . . 1 . 1 1 . 1 . . 1 5 . . 2 1 Hunter 5 | . . . . . . 2 3 . . . . . . . . . . . . . . . . Programmer 17 | . . . . . . . . . . 9 . . . . . 2 . 2 1 . . 2 1 Behemoth 2 | . . . . . . . . . . . . . . . . . . . 2 . . . . Cetus Guard 1 | . . . . . . . . . . . . . . . . . . . . 1 . . . Enhanced Grunt 3 | . . . . . . . . . . . . . . . . . . . . . . 3 . Surgeon 4 | . . . . . . . . . 2 . . . . . . . 2 . . . . . . Wasp 7 | . . . . . . . . . 1 . . . . . . . 6 . . . . . . Thug 15 | . . . . . . . . . 7 . . . . . . . 7 . . 1 . . . Butcher 4 | . . . . . . . . . 1 . . . . . . . 2 . . 1 . . . Martyr 2 | . . . . . . . . . . . . . . . . . 2 . . . . . . Guerrilla 1 | . . . . . . . . . . . . . . . . . . . . . . 1 . Best Kill Streak 13 | 4 1 . . 2 4 4 8 . . 2 4 3 2 . 1 3 . 6 4 1 1 13 5 Combat Bots Only 10 | . . . . 1 3 4 7 . . 2 4 3 2 . 1 2 . 5 4 1 . 10 5 Max Kills in Single Turn 13 | 1 1 . . 1 1 3 3 . 1 1 1 1 1 . 1 1 1 3 2 2 1 13 1 Gunslinging 1 | . . . . . . . . . . . . . . . . . . . 1 . . . . Exploded 3 | . . . . . . 3 2 . . . . 1 . . . . . 2 . . . 2 . Melee 1 | . . . . . . . . . . 1 1 . . . . . . 1 . . . . 1 Uniques/NPCs Destroyed 1 | . . . . 1 . . . . . . . . . . . . . . . . . . . YI-UF0 (-9/Mines) Combat | -11 -10 -10 -10 -9 -8 -8 -8 -7 -7 -7 -6 -6 -6 -6 -5 -5 -5 -5 -5 -5 -5 -5 -4 -------- Run | Scr Mat Min Exi Min Mat Gar Mat Fac Was Fac Fac Low Low Dat Pro Fac Was Fac Ext Cet Arc Hub Fac Damage Taken 18658 | . 13 . . 281 890 401 1489 . 152 1975 145 672 481 . 559 420 99 801 2418 111 . 3815 3936 Core 2515 | . 13 . . 33 103 48 225 . 94 222 14 28 31 . 64 103 . 55 143 10 . 168 1161 Absorbed by Shields 142 | . . . . . . . . . . . . . . . . . . . 47 64 . . 31 Reduced by Siege Mode 24 | . . . . . . . . . . . . . . . . . . . 24 . . . . Core Remaining (%) 66 | 100 . . . 81 . . 31 . . 54 . . . . 83 . . . . . . 52 . Volleys Fired 600 | 13 1 . . 39 76 83 65 . . 57 . 15 14 . 11 13 . 15 70 12 9 55 52 Largest 2 | 2 2 . . 2 2 2 2 . . 2 . 2 2 . 2 2 . 2 2 2 1 2 2 Hottest 240 | 80 80 . . 100 126 126 126 . . 109 . 91 118 . 118 93 . 60 176 160 35 160 240 Shots Fired 1009 | 26 2 . . 70 145 119 127 . . 76 . 20 28 . 16 26 . 26 130 26 9 105 58 Gun 718 | 26 2 . . 69 95 2 88 . . 76 . 5 14 . 11 26 . 22 105 18 9 103 47 Cannon 241 | . . . . . 45 116 36 . . . . . 9 . 1 . . . 15 8 . . 11 Launcher 34 | . . . . . . 1 3 . . . . 15 5 . 4 . . 4 . . . 2 . Special 16 | . . . . 1 5 . . . . . . . . . . . . . 10 . . . . Kinetic 562 | . . . . 31 73 2 88 . . 72 . . . . 10 23 . 22 106 16 9 88 22 Thermal 165 | 26 2 . . 39 27 . . . . 4 . . . . . 3 . . 14 10 . 15 25 Explosive 13 | . . . . . . 1 3 . . . . 3 . . . . . 4 . . . 2 . Electromagnetic 259 | . . . . . 45 116 36 . . . . 17 28 . 6 . . . . . . . 11 Robot Hit Streak 32 | 14 15 . . 26 13 20 32 . . 20 . 11 8 . 10 17 . 4 25 6 3 12 8 Robot Miss Streak 6 | 2 . . . 2 3 2 3 . . 2 . 1 2 . 6 4 . 4 3 2 2 3 4 Penetration Max 2 | . . . . . . . 1 . . . . . . . . 1 . 2 2 1 1 1 . Secondary Targets 9 | . . . . . . . 1 . . 1 . . . . . . . . 2 . . 4 1 Max Gunslinging Chain 1 | . . . . . . . 1 . . 1 . . . . . . . . 1 . . 1 1 Shots Hit Robots 838 | 17 1 . . 45 101 45 95 . 30 87 5 16 21 . 15 15 64 23 109 18 11 81 39 Core Hits 393 | 7 1 . . 18 43 31 47 . 11 30 4 13 8 . 9 12 19 17 36 10 4 61 12 Critical Hits 57 | . . . . . 6 . 4 . . 2 1 . . . . . 3 1 16 5 4 10 5 Critical Kills 25 | . . . . . 4 . 4 . . 2 1 . . . . . 1 1 5 3 . 4 . Critical Parts Destroyed 27 | . . . . . 2 . . . . . . . . . . . 1 . 11 2 3 3 5 Melee Attacks 207 | . . . . . . . 13 . 31 32 12 . . . . 1 66 18 6 . 6 13 9 Impact . | . . . . . . . . . . . . . . . . . . . . . . . . Slashing 154 | . . . . . . . 13 . 25 27 12 . . . . 1 58 10 . . . 2 6 Piercing 32 | . . . . . . . . . . . . . . . . . . 6 6 . 6 11 3 Sneak Attacks 96 | . . . . . . . 1 . 26 2 . . . . . . 58 2 2 . 4 1 . Combat Hostiles 18 | . . . . . . . . . 2 . . . . . . . 16 . . . . . . Follow-up Attacks . | . . . . . . . . . . . . . . . . . . . . . . . . Damage Inflicted 31735 | 182 12 . . 576 1934 1416 3199 . 2287 2113 182 653 531 . 294 782 5113 1547 3626 451 864 4713 1260 Guns 13490 | 182 12 . . 576 1356 31 1419 . . 1383 . 82 178 . 196 782 . 554 3002 290 201 2297 949 Cannons 3337 | . . . . . 578 1136 755 . . . . . 158 . 22 . . . 304 161 . . 223 Explosions 4813 | . . . . . . 249 896 . . . . 571 195 . 76 . . 570 . . . 2256 . Melee 10046 | . . . . . . . 129 . 2287 730 182 . . . . . 5113 423 298 . 663 149 72 Ramming 49 | . . . . . . . . . . . . . . . . . . . 22 . . 11 16 Kinetic 11109 | . . . . 261 776 31 1419 . . 1290 . . . . 179 703 . 554 2965 274 201 1978 478 Thermal 2463 | 182 12 . . 315 289 121 . . . 93 . . 64 . . 79 . . 341 177 . 319 471 Explosive 2197 | . . . . . . 128 896 . . . . 276 . . . . . 570 . . . 327 . Electromagnetic 5871 | . . . . . 869 1136 755 . . . . 377 467 . 115 . . . . . . 1929 223 Impact . | . . . . . . . . . . . . . . . . . . . . . . . . Slashing 8868 | . . . . . . . 129 . 2287 730 182 . . . . . 5113 206 . . . 149 72 Piercing 1178 | . . . . . . . . . . . . . . . . . . 217 298 . 663 . . Highest Corruption 23 | . . . . . 3 3 3 . . 15 . . . . . 4 4 8 9 9 9 23 10 Average Corruption 5 | . . . . . 3 3 3 . . 6 . . . . . 3 4 5 8 9 9 11 5 Corruption Purged 25 | . . . . . . . . . . 22 . . . . . . . 3 . . . . . Effects 438 | . . . . . 4 46 39 . . 93 . . . . . 1 32 32 93 14 9 60 15 Message Errors 89 | . . . . . 1 15 7 . . 23 . . . . . . 7 5 12 . 2 13 4 Matter Fused 93 | . . . . . . 12 8 . . 20 . . . . . . 6 12 16 3 3 10 3 Heat Flow Errors 51 | . . . . . 1 5 8 . . 9 . . . . . 1 7 3 8 2 1 5 1 Energy Discharges 46 | . . . . . . 6 3 . . 12 . . . . . . 4 4 12 2 . 2 1 Parts Rejected 5 | . . . . . . . . . . 1 . . . . . . . 1 2 1 . . . Data Loss (minor) 53 | . . . . . 2 5 7 . . 9 . . . . . . 2 4 11 1 2 8 2 Data Loss (major) 20 | . . . . . . . . . . 4 . . . . . . . . 12 2 . 1 1 Misfires 10 | . . . . . . . . . . 3 . . . . . . . . 4 2 . 1 . Alerts 3 | . . . . . . . . . . 2 . . . . . . . . . . . 1 . Misdirections 6 | . . . . . . . . . . 2 . . . . . . . . . . . 3 1 Targeting Errors 55 | . . . . . . 3 6 . . 8 . . . . . . 6 3 13 1 1 13 1 Weapon Failures 7 | . . . . . . . . . . . . . . . . . . . 3 . . 3 1 Overload Shots 2 | . . . . . . . . . . . . . . . . . . . . . . . 2 Overflow Damage 1511 | . . . . . 14 3 120 . 226 9 . 1 14 . . . 723 50 160 . 13 178 . Projectiles 39 | . . . . . 14 . 25 . . . . . . . . . . . . . . . . Explosions 219 | . . . . . . 3 23 . . . . 1 14 . . . . . . . . 178 . Melee 1253 | . . . . . . . 72 . 226 9 . . . . . . 723 50 160 . 13 . . Knockbacks 2 | . . . . . . . . . . . . . . . . . . . 2 . . . . Impact . | . . . . . . . . . . . . . . . . . . . . . . . . Kinetic 2 | . . . . . . . . . . . . . . . . . . . 2 . . . . Secondary . | . . . . . . . . . . . . . . . . . . . . . . . . Self-Inflicted Damage 207 | . . . . . . 34 . . . . . 25 29 . . . . . . . . 119 . Shots 7 | . . . . . . 1 . . . . . 2 2 . . . . . . . . 2 . Rammed 4 | . . . . . . . . . . . . . . . . . . . 2 . . 2 . Targets Rammed 5 | . . . . . . . . . . . . . . . . . . . 2 . . 2 1 Kicked . | . . . . . . . . . . . . . . . . . . . . . . . . Crushed 1 | . . . . . . . . . . . . . . . . . . . . . . . 1 Highest Temperature 533 | 144 18 . . 72 428 341 237 . . 271 . 93 174 . 42 120 278 193 400 354 97 224 533 Average Temperature 100 | 54 12 . . 23 108 85 79 . . 78 . 46 48 . 13 71 104 99 91 98 51 65 188 Received Heat Transfer 2846 | . . . . . 288 126 423 . . 270 . 198 120 . 45 27 9 27 435 20 . 531 327 Effects 33 | . . . . . 3 2 . . . 1 . . . . . . . . 3 2 . . 22 Shutdowns 6 | . . . . . . . . . . . . . . . . . . . 1 . . . 5 Energy Bleed 8 | . . . . . 1 2 . . . 1 . . . . . . . . . . . . 4 Interference 6 | . . . . . . . . . . . . . . . . . . . 2 2 . . 2 Matter Decay 3 | . . . . . 2 . . . . . . . . . . . . . . . . . 1 Short Circuit 1 | . . . . . . . . . . . . . . . . . . . . . . . 1 Damage (minor) 2 | . . . . . . . . . . . . . . . . . . . . . . . 2 Damage (major) 7 | . . . . . . . . . . . . . . . . . . . . . . . 7 Siege Activations 1 | . . . . . . . . . . . . . . . . . . . 1 . . . . Total Turns 10 | . . . . . . . . . . . . . . . . . . . 10 . . . . Longest Duration 10 | . . . . . . . . . . . . . . . . . . . 10 . . . . Robots Corrupted 15 | . . . . . 1 2 2 . . . . 1 2 . 1 . . . . . . 4 2 Combat Hostiles 7 | . . . . . . . 1 . . . . 1 2 . 1 . . . . . . . 2 Parts Fried 43 | . . . . . 5 5 8 . . . . 2 5 . 1 . . . . 1 . 14 2 Impact Corruptions . | . . . . . . . . . . . . . . . . . . . . . . . . Robots Melted . | . . . . . . . . . . . . . . . . . . . . . . . . Combat Hostiles . | . . . . . . . . . . . . . . . . . . . . . . . . Parts Melted 5 | 1 . . . 1 1 . . . . . . . . . . . . . . . . 1 1 Heat Transferred 3644 | 425 25 . . 711 518 150 . . . 111 . . 50 . . 111 . . 407 222 . 407 507 Parts Sabotaged 1 | . . . . . . . . . . . . . . . . . . . . . . 1 . Parts Stolen . | . . . . . . . . . . . . . . . . . . . . . . . . Parts Stripped . | . . . . . . . . . . . . . . . . . . . . . . . . Power Chain Reactions 3 | . . . . . 1 1 . . . . . . 1 . . . . . . . . . . Missiles Intercepted . | . . . . . . . . . . . . . . . . . . . . . . . . Alert | -11 -10 -10 -10 -9 -8 -8 -8 -7 -7 -7 -6 -6 -6 -6 -5 -5 -5 -5 -5 -5 -5 -5 -4 ------- Run | Scr Mat Min Exi Min Mat Gar Mat Fac Was Fac Fac Low Low Dat Pro Fac Was Fac Ext Cet Arc Hub Fac Peak Influence 1750 | 30 31 12 . 35 326 1154 735 333 150 180 135 . . . . 154 57 298 465 501 460 1750 1241 Initial 1100 | . 19 12 . . 5 211 562 333 116 . 39 . . . . . 27 . 91 260 200 161 1100 Average 215 | 13 25 12 . 8 91 811 410 333 35 59 105 . . . . 54 10 81 136 381 401 262 594 Maximum Alert Level 5 | . . . . . 1 4 3 1 . . . . . . . . . 1 2 2 2 5 4 Low Security (%) 69 | 100 100 100 . 100 84 . . . 100 100 100 . . . . 100 100 75 75 3 . 66 54 Level 1 11 | . . . . . 15 15 37 100 . . . . . . . . . 24 19 43 25 10 . Level 2 8 | . . . . . . 10 58 . . . . . . . . . . . 4 53 74 14 . Level 3 7 | . . . . . . 65 2 . . . . . . . . . . . . . . 4 3 Level 4 2 | . . . . . . 8 . . . . . . . . . . . . . . . . 41 Level 5 . | . . . . . . . . . . . . . . . . . . . . . . 3 . High Security . | . . . . . . . . . . . . . . . . . . . . . . . . Max Security . | . . . . . . . . . . . . . . . . . . . . . . . . Squads Dispatched 43 | . . . . . 2 . 4 . . 11 1 . . . . 2 . 4 4 . . 10 5 Investigation 5 | . . . . . . . 1 . . 1 . . . . . . . . . . . 2 1 Extermination 16 | . . . . . . . . . . 8 1 . . . . 1 . 3 . . . 1 2 Reinforcement 13 | . . . . . 1 . 1 . . 2 . . . . . 1 . 1 4 . . 2 1 Assault 4 | . . . . . . . 2 . . . . . . . . . . . . . . 1 1 Garrison 5 | . . . . . 1 . . . . . . . . . . . . . . . . 4 . Intercept . | . . . . . . . . . . . . . . . . . . . . . . . . Construction Impeded 5 | . . . . . . . . . . . . . . . . 1 . 1 1 . . 1 1 Haulers Reinforced 1 | . . . . . . . . . . . . . . . . . . . . . . 1 . Stealth | -11 -10 -10 -10 -9 -8 -8 -8 -7 -7 -7 -6 -6 -6 -6 -5 -5 -5 -5 -5 -5 -5 -5 -4 --------- Run | Scr Mat Min Exi Min Mat Gar Mat Fac Was Fac Fac Low Low Dat Pro Fac Was Fac Ext Cet Arc Hub Fac Distress Signals 17 | . . . . . 5 1 4 . . 2 . . . . . . . 1 2 1 . 1 . Communications Jammed . | . . . . . . . . . . . . . . . . . . . . . . . . Distress Signals . | . . . . . . . . . . . . . . . . . . . . . . . . Times Spotted 349 | . 1 . . 1 39 22 48 . 6 29 4 7 8 . 3 8 6 16 46 13 14 54 24 Peak Tracking Total 28 | . 1 . . 1 5 6 9 . 3 6 4 3 3 . 2 3 2 7 5 5 2 28 7 Tactical Retreats 20 | . . . . . 3 3 6 . . 2 . . 3 . . . . . . . . 1 2 Traps | -11 -10 -10 -10 -9 -8 -8 -8 -7 -7 -7 -6 -6 -6 -6 -5 -5 -5 -5 -5 -5 -5 -5 -4 ------- Run | Scr Mat Min Exi Min Mat Gar Mat Fac Was Fac Fac Low Low Dat Pro Fac Was Fac Ext Cet Arc Hub Fac Traps Triggered 21 | . 1 . . . . 6 1 1 . 4 3 . . . . 1 . 1 1 . . 1 1 Indirectly . | . . . . . . . . . . . . . . . . . . . . . . . . Trap Hack Attempts . | . . . . . . . . . . . . . . . . . . . . . . . . Triggered . | . . . . . . . . . . . . . . . . . . . . . . . . Disarmed . | . . . . . . . . . . . . . . . . . . . . . . . . Reprogrammed . | . . . . . . . . . . . . . . . . . . . . . . . . Reused . | . . . . . . . . . . . . . . . . . . . . . . . . Traps Extracted . | . . . . . . . . . . . . . . . . . . . . . . . . Installed . | . . . . . . . . . . . . . . . . . . . . . . . . Triggered 3 | . . . . . 2 . . . . . . . . . . . . . . . . 1 . Exploded 2 | . . . . 1 1 . . . . . . . . . . . . . . . . . . Machines | -11 -10 -10 -10 -9 -8 -8 -8 -7 -7 -7 -6 -6 -6 -6 -5 -5 -5 -5 -5 -5 -5 -5 -4 ---------- Run | Scr Mat Min Exi Min Mat Gar Mat Fac Was Fac Fac Low Low Dat Pro Fac Was Fac Ext Cet Arc Hub Fac Machines Disabled 44 | . . . . . 3 4 2 . . 1 . . 1 . . . . . 6 3 4 18 2 Max in Single Turn 16 | . . . . . 1 1 1 . . 1 . . 1 . . . . . 1 1 1 16 1 Garrison Access 5 | . . . . . . . 1 . . . . . . . . . . 2 . . . 1 1 Garrison Relay 4 | . . . . . . 4 . . . . . . . . . . . . . . . . . Network Hub 1 | . . . . . . . . . . . . . . . . . . . . . . 1 . Machines Sabotaged . | . . . . . . . . . . . . . . . . . . . . . . . . Garrisons Compromised . | . . . . . . . . . . . . . . . . . . . . . . . . Overloaded Fab Kills . | . . . . . . . . . . . . . . . . . . . . . . . . Fab Network Shutdowns . | . . . . . . . . . . . . . . . . . . . . . . . . Hacking | -11 -10 -10 -10 -9 -8 -8 -8 -7 -7 -7 -6 -6 -6 -6 -5 -5 -5 -5 -5 -5 -5 -5 -4 --------- Run | Scr Mat Min Exi Min Mat Gar Mat Fac Was Fac Fac Low Low Dat Pro Fac Was Fac Ext Cet Arc Hub Fac Machines Accessed 69 | . 2 . 2 . 13 . 10 . . 3 2 . . 4 1 2 . 8 7 3 . 8 4 Terminals 45 | . 2 . . . 7 . 7 . . 1 2 . . . 1 1 . 4 6 3 . 8 3 Fabricators . | . . . . . . . . . . . . . . . . . . . . . . . . Repair Stations 5 | . . . . . 1 . 1 . . 1 . . . . . 1 . . 1 . . . . Recycling Units 4 | . . . . . 2 . . . . . . . . . . . . 2 . . . . . Scanalyzers 5 | . . . . . 2 . 1 . . 1 . . . . . . . . . . . . 1 Garrison Access 4 | . . . . . 1 . 1 . . . . . . . . . . 2 . . . . . Total Hacks 303 | . 4 . 24 . 44 . 34 . . 11 10 . . 26 2 5 . 22 29 15 . 45 32 Successful 176 | . 2 . 24 . 22 . 17 . . 7 4 . . 26 2 2 . 12 13 5 . 21 19 Failed 126 | . 2 . . . 22 . 17 . . 4 6 . . . . 3 . 10 15 10 . 24 13 Catastrophic 15 | . . . . . . . 2 . . . . . . . . 2 . 2 2 1 . 3 3 Database Lockouts 1 | . . . . . . . . . . . . . . . . . . . 1 . . . . Manual 155 | . 4 . 1 . 21 . 21 . . 3 10 . . . . 3 . 13 19 4 . 44 12 Terminals 194 | . 4 . . . 22 . 25 . . 3 10 . . . 2 3 . 14 25 15 . 45 26 Fabricators . | . . . . . . . . . . . . . . . . . . . . . . . . Repair Stations 17 | . . . . . 3 . 3 . . 5 . . . . . 2 . . 4 . . . . Recycling Units 13 | . . . . . 7 . . . . . . . . . . . . 6 . . . . . Scanalyzers 25 | . . . . . 11 . 5 . . 3 . . . . . . . . . . . . 6 Garrison Access 4 | . . . . . 1 . 1 . . . . . . . . . . 2 . . . . . Terminal Hacks 96 | . . . 24 . 1 . 6 . . . 2 . . 26 2 . . 2 5 5 . 13 10 Record 40 | . . . 23 . . . . . . . . . . 11 2 . . . . 4 . . . Part Schematic 10 | . . . . . . . 1 . . . . . . 6 . . . . 1 . . 1 1 Robot Schematic 6 | . . . . . . . . . . . . . . 6 . . . . . . . . . Robot Analysis 3 | . . . . . 1 . 2 . . . . . . . . . . . . . . . . Prototype ID Bank 3 | . . . . . . . . . . . . . . 3 . . . . . . . . . Open Door 1 | . . . . . . . . . . . . . . . . . . . . 1 . . . Level Access Points 2 | . . . . . . . . . . . . . . . . . . . . . . 1 1 Branch Access Points 1 | . . . . . . . . . . . . . . . . . . . 1 . . . . Terminal Index 5 | . . . . . . . 1 . . . 1 . . . . . . 1 . . . 1 1 Fabricator Index 2 | . . . . . . . . . . . 1 . . . . . . . . . . 1 . Garrison Index 1 | . . . . . . . . . . . . . . . . . . . . . . 1 . Unreport Threat 9 | . . . . . . . 1 . . . . . . . . . . . 1 . . 1 6 Locate Traps 7 | . . . . . . . 1 . . . . . . . . . . . 1 . . 4 1 Security Status 1 | . . . . . . . . . . . . . . . . . . . . . . 1 . Recall Investigation 1 | . . . . . . . . . . . . . . . . . . . . . . 1 . Recall Extermination 1 | . . . . . . . . . . . . . . . . . . 1 . . . . . Zone Layout 2 | . . . . . . . . . . . . . . . . . . . 1 . . 1 . EX-Prototype ID Bank 1 | . . . 1 . . . . . . . . . . . . . . . . . . . . Fabricator Hacks . | . . . . . . . . . . . . . . . . . . . . . . . . Repair Station Hacks 10 | . . . . . 2 . 1 . . 4 . . . . . 1 . . 2 . . . . Scan Component 6 | . . . . . 1 . 1 . . 2 . . . . . 1 . . 1 . . . . Repair 4 | . . . . . 1 . . . . 2 . . . . . . . . 1 . . . . Recycling Unit Hacks 10 | . . . . . 6 . . . . . . . . . . . . 4 . . . . . Process 1 | . . . . . 1 . . . . . . . . . . . . . . . . . . Report Inventory 4 | . . . . . 2 . . . . . . . . . . . . 2 . . . . . Retrieve Matter 1 | . . . . . 1 . . . . . . . . . . . . . . . . . . Retrieve Components 4 | . . . . . 2 . . . . . . . . . . . . 2 . . . . . Scanalyzer 18 | . . . . . 5 . 4 . . 3 . . . . . . . . . . . . 6 Insert Component 9 | . . . . . 3 . 2 . . 1 . . . . . . . . . . . . 3 Analyze 9 | . . . . . 2 . 2 . . 2 . . . . . . . . . . . . 3 Garrison Access Hacks 4 | . . . . . 1 . 1 . . . . . . . . . . 2 . . . . . Unlock Access 1 | . . . . . 1 . . . . . . . . . . . . . . . . . . Seal Access 3 | . . . . . . . 1 . . . . . . . . . . 2 . . . . . Unauthorized Hacks 38 | . 2 . . . 7 . 5 . . . 2 . . . . 1 . 4 6 . . 8 3 Terminals 38 | . 2 . . . 7 . 5 . . . 2 . . . . 1 . 4 6 . . 8 3 Track 3 | . . . . . 1 . . . . . . . . . . . . . . . . 2 . Assimilate 1 | . . . . . . . 1 . . . . . . . . . . . . . . . . Botnet 27 | . 2 . . . 5 . 3 . . . 1 . . . . 1 . 3 5 . . 5 2 Operators 7 | . . . . . 1 . 1 . . . 1 . . . . . . 1 1 . . 1 1 Fabricators . | . . . . . . . . . . . . . . . . . . . . . . . . Repair Stations . | . . . . . . . . . . . . . . . . . . . . . . . . Recycling Units . | . . . . . . . . . . . . . . . . . . . . . . . . Scanalyzers . | . . . . . . . . . . . . . . . . . . . . . . . . Garrison Access . | . . . . . . . . . . . . . . . . . . . . . . . . Data Cores Recovered . | . . . . . . . . . . . . . . . . . . . . . . . . Used . | . . . . . . . . . . . . . . . . . . . . . . . . Hacking Detections 47 | . 2 . . . 11 . 7 . . 2 2 . . . 1 2 . 5 4 2 . 7 2 Full Trace Events 4 | . . . . . 1 . 1 . . 1 . . . . . . . . . . . . 1 Feedback Events . | . . . . . . . . . . . . . . . . . . . . . . . . Feedback Blocked . | . . . . . . . . . . . . . . . . . . . . . . . . Robot Schematics Acquired 6 | . . . . . . . . . . . . . . 6 . . . . . . . . . Robots Built . | . . . . . . . . . . . . . . . . . . . . . . . . Matter . | . . . . . . . . . . . . . . . . . . . . . . . . Time . | . . . . . . . . . . . . . . . . . . . . . . . . Total Robot Build Rating . | . . . . . . . . . . . . . . . . . . . . . . . . Part Schematics Acquired 18 | . . . . . 2 . 3 . . 1 . . . 6 . . . . 1 . . 1 4 Parts Built . | . . . . . . . . . . . . . . . . . . . . . . . . Matter . | . . . . . . . . . . . . . . . . . . . . . . . . Time . | . . . . . . . . . . . . . . . . . . . . . . . . Total Part Build Rating . | . . . . . . . . . . . . . . . . . . . . . . . . Parts Repaired 4 | . . . . . 1 . . . . 2 . . . . . . . . 1 . . . . Time 276 | . . . . . 80 . . . . 128 . . . . . . . . 68 . . . . Parts Recycled . | . . . . . . . . . . . . . . . . . . . . . . . . Recycled Matter 23 | . . . . . 23 . . . . . . . . . . . . . . . . . . Retrieved Matter 23 | . . . . . 23 . . . . . . . . . . . . . . . . . . Retrieved Components 16 | . . . . . 10 . . . . . . . . . . . . 6 . . . . . Parts Scanalyzed 8 | . . . . . 3 . 1 . . 1 . . . . . . . . . . . . 3 Part Schematics Acquired 8 | . . . . . 2 . 2 . . 1 . . . . . . . . . . . . 3 Parts Damaged 1 | . . . . . . . . . . 1 . . . . . . . . . . . . . Bothacking | -11 -10 -10 -10 -9 -8 -8 -8 -7 -7 -7 -6 -6 -6 -6 -5 -5 -5 -5 -5 -5 -5 -5 -4 ------------ Run | Scr Mat Min Exi Min Mat Gar Mat Fac Was Fac Fac Low Low Dat Pro Fac Was Fac Ext Cet Arc Hub Fac Used RIF Installer 1 | . . . . . . 1 . . . . . . . . . . . . . . . . . Robots Hacked 15 | . . . . . . . . . 4 2 . . . . . . 6 1 2 . . . . Non-combat 1 | . . . . . . . . . . . . . . . . . . 1 . . . . . Combat 14 | . . . . . . . . . 4 2 . . . . . . 6 . 2 . . . . Robot Hacks Applied 15 | . . . . . . . . . 4 2 . . . . . . 6 1 2 . . . . map_route 1 | . . . . . . . . . . . . . . . . . . 1 . . . . . ignore_targets 10 | . . . . . . . . . 4 . . . . . . . 6 . . . . . . disrupt_area 1 | . . . . . . . . . . . . . . . . . . . 1 . . . . formatsys_high 3 | . . . . . . . . . . 2 . . . . . . . . 1 . . . . Relay Couplers Released 16 | . . . . . . 16 . . . . . . . . . . . . . . . . . Machine Destruction 16 | . . . . . . 16 . . . . . . . . . . . . . . . . . Attached 8 | . . . . . . . . . 1 1 . . . . . . 1 1 1 . . . 3 Robots Rewired 18 | . . . . . . . . . . . . . . . . . . . 18 . . . . Allies Hacked . | . . . . . . . . . . . . . . . . . . . . . . . . Hacks Repelled . | . . . . . . . . . . . . . . . . . . . . . . . . Allies | -11 -10 -10 -10 -9 -8 -8 -8 -7 -7 -7 -6 -6 -6 -6 -5 -5 -5 -5 -5 -5 -5 -5 -4 -------- Run | Scr Mat Min Exi Min Mat Gar Mat Fac Was Fac Fac Low Low Dat Pro Fac Was Fac Ext Cet Arc Hub Fac Total Allies 77 | . . . . . . . 1 . 19 2 . . . . 1 . 19 . 30 5 . . . Largest Group 19 | . . . . . . . 1 . 19 1 . . . . 1 1 19 . 14 14 8 6 . Highest-Rated Group 714 | . . . . . . . 26 . 487 16 . . . . 94 94 714 . 541 678 678 507 . Highest-Rated Ally 156 | . . . . . . . 26 . 35 16 . . . . 94 94 50 . 156 156 156 94 . Total Orders 8 | . . . . . . . . . . . . . . . . . . . 2 2 2 2 . STAY 4 | . . . . . . . . . . . . . . . . . . . 1 1 1 1 . FOLLOW 4 | . . . . . . . . . . . . . . . . . . . 1 1 1 1 . Ally Attacks 622 | . . . . . . . . . 174 3 . . . . 12 12 188 . 120 49 28 36 . Total Damage 15411 | . . . . . . . . . 4549 48 . . . . 375 518 3996 . 2530 1465 827 1103 . Kills 78 | . . . . . . . . . 10 . . . . . 2 4 5 . 30 12 5 10 . Allies Corrupted 3 | . . . . . . . . . 1 . . . . . . . . . . . . 2 . Allies Melted . | . . . . . . . . . . . . . . . . . . . . . . . . Intel | -11 -10 -10 -10 -9 -8 -8 -8 -7 -7 -7 -6 -6 -6 -6 -5 -5 -5 -5 -5 -5 -5 -5 -4 ------- Run | Scr Mat Min Exi Min Mat Gar Mat Fac Was Fac Fac Low Low Dat Pro Fac Was Fac Ext Cet Arc Hub Fac Robot Analysis Total 3 | . . . . . 1 . 2 . . . . . . . . . . . . . . . . Derelict Logs Recovered 4 | . . . . 2 . . . . . . . . 1 . 1 . . . . . . . . Drone Launches . | . . . . . . . . . . . . . . . . . . . . . . . . Drone Recoveries . | . . . . . . . . . . . . . . . . . . . . . . . . Decoded 0b10 Intel 23 | . . . . . . . . . . . . . . . . 9 . 14 . . . . . Traps 18 | . . . . . . . . . . . . . . . . 7 . 11 . . . . . Emergency Access 4 | . . . . . . . . . . . . . . . . 2 . 2 . . . . . Garrisons 1 | . . . . . . . . . . . . . . . . . . 1 . . . . . Exploration | -11 -10 -10 -10 -9 -8 -8 -8 -7 -7 -7 -6 -6 -6 -6 -5 -5 -5 -5 -5 -5 -5 -5 -4 ------------- Run | Scr Mat Min Exi Min Mat Gar Mat Fac Was Fac Fac Low Low Dat Pro Fac Was Fac Ext Cet Arc Hub Fac Turns Passed 28121 | 88 114 78 818 2198 2990 2762 2162 79 1291 4660 326 843 858 174 490 584 1483 1228 2161 378 255 1144 957 Spaces Moved 10946 | 33 92 64 377 884 1171 1146 762 33 499 792 142 422 377 83 215 240 673 638 983 162 110 483 565 Core 240 | . . . . . . . . . . . . . . . . . 4 . . . . . 236 Treads 8847 | . . . . 252 1171 1146 762 33 499 574 105 422 377 83 215 107 421 638 983 162 110 483 304 Legs 1318 | 33 92 64 377 632 . . . . . . . . . . . 120 . . . . . . . Wheels 473 | . . . . . . . . . . 218 37 . . . . 13 205 . . . . . . Hover . | . . . . . . . . . . . . . . . . . . . . . . . . Flight 68 | . . . . . . . . . . . . . . . . . 43 . . . . . 25 Fastest Speed 34 | 120 120 120 120 200 180 177 217 240 212 150 150 185 185 212 185 130 130 160 163 163 163 163 34 Average Speed 194 | 120 120 120 213 228 199 203 221 240 235 210 195 187 209 212 211 202 184 168 169 179 169 167 126 Slowest Speed 2600 | 120 120 120 240 240 220 217 300 240 240 290 220 200 212 212 360 360 2600 193 193 185 185 200 265 Overloaded Moves . | . . . . . . . . . . . . . . . . . . . . . . . . Propulsion Burnouts . | . . . . . . . . . . . . . . . . . . . . . . . . Robots Hopped 3 | . . . . . . . . . . . . . . . . . . . . . . . 3 Cave-ins Triggered 1 | . . . . . . . . . . . . . . . . . . . . . . 1 . Exploration Rate (%) 50 | 4 23 21 69 100 74 78 62 2 96 14 4 76 65 68 39 7 96 18 85 71 76 41 18 Regions Visited 23 Branch Regions 11 Pre-discovered Areas 2 | . . . 1 . . . . . . . . . . 1 . . . . . . . . . Known Exits Taken 3 | . . . . . 1 . . . . . . . . . . . . . 1 . . 1 . Unknown Exits Taken 15 | 1 1 1 1 1 . . 1 . . 1 1 1 1 1 1 . . 1 . 1 1 . . Scrap Searched 9 | . . 1 . 1 . . . . . . . 4 3 . . . . . . . . . . Spaces Dug 45 | . . . . 1 5 . 11 . . 3 2 . . . . 1 . 7 1 . . 9 5 Terrain Destroyed 379 | . . . . 1 22 8 29 . . 4 2 6 5 . . 13 . 50 18 3 1 208 9 Melee 39 | . . . . . . . 11 . . 3 2 . . . . 1 . 7 1 . . 9 5 Projectile 97 | . . . . 1 15 . 1 . . 1 . . . . . 12 . 12 17 3 1 30 4 AOE 243 | . . . . . 7 8 17 . . . . 6 5 . . . . 31 . . . 169 . Terrain Rammed . | . . . . . . . . . . . . . . . . . . . . . . . . Walls Destroyed . | . . . . . . . . . . . . . . . . . . . . . . . . Machines Disabled . | . . . . . . . . . . . . . . . . . . . . . . . . Actions | -11 -10 -10 -10 -9 -8 -8 -8 -7 -7 -7 -6 -6 -6 -6 -5 -5 -5 -5 -5 -5 -5 -5 -4 --------- Run | Scr Mat Min Exi Min Mat Gar Mat Fac Was Fac Fac Low Low Dat Pro Fac Was Fac Ext Cet Arc Hub Fac Total 16513 | 55 95 65 392 990 1682 1480 1086 36 576 3667 174 455 415 82 233 307 838 739 1340 231 159 681 735 Wait 3868 | 7 1 2 . 43 293 152 214 . 12 2748 1 4 2 . . 29 34 28 138 28 19 94 19 Move 10920 | 32 91 63 376 883 1171 1145 761 33 498 791 141 421 376 82 214 240 672 637 982 161 109 482 559 Hop 3 | . . . . . . . . . . . . . . . . . . . . . . . 3 Pick Up 201 | 2 1 . 13 11 40 36 3 . 10 7 . 6 17 . 1 3 12 11 7 6 5 2 8 Fast Attach 112 | 1 . . 1 2 17 5 3 . 7 5 2 1 1 . 3 10 16 3 12 9 1 4 9 Attach 100 | . . . . 3 9 1 6 1 7 9 5 2 3 . 3 1 2 3 9 . 1 6 29 Detach 47 | . . . . . 6 1 . 1 6 3 4 1 . . 1 . 2 1 7 1 . 1 12 Swap 132 | . . . . 4 23 6 15 . 2 12 2 3 2 . . 5 6 11 17 . 4 13 7 Drop 213 | . 1 . 2 5 47 39 6 1 3 3 1 2 . . . 5 28 12 14 14 5 8 17 Fire 600 | 13 1 . . 39 76 83 65 . . 57 . 15 14 . 11 13 . 15 70 12 9 55 52 Melee 207 | . . . . . . . 13 . 31 32 12 . . . . 1 66 18 6 . 6 13 9 Ram 1 | . . . . . . . . . . . . . . . . . . . . . . 1 . Kick . | . . . . . . . . . . . . . . . . . . . . . . . . Crush 5 | . . . . . . . . . . . . . . . . . . . 2 . . 2 1 Escape Stasis 28 | . . . . . . 12 . . . . 6 . . . . . . . . . . . 10 Rewire 76 | . . . . . . . . . . . . . . . . . . . 76 . . . . Trap . | . . . . . . . . . . . . . . . . . . . . . . . . Miscellaneous . | . . . . . . . . . . . . . . . . . . . . . . . . Route ------- -11/Scrapyard -10/Materials -10/Mines -10/Exiles -9/Mines (discovered 2 exits: *Mat x2) -8/Materials (discovered 4 exits: [*Fac x2] / [*Sto] / Gar) -8/Garrison (discovered 3 exits: *Mat x3) -8/Materials (discovered 2 exits: [*Fac x2]) -7/Factory (discovered 2 exits: *Fac / Low) -7/Waste -7/Factory -6/Factory -6/Lower Caves -6/Lower Caves (discovered 2 exits: *Fac / *Dat) -6/Data Miner -5/Proximity Caves -5/Factory (discovered 2 exits: Fac x2) -5/Waste -5/Factory -5/Extension (discovered 2 exits: *Fac / *Cet) -5/Cetus -5/Archives (discovered 3 exits: *Fac / *Hub x2) -5/Hub_04(d) (discovered 4 exits: *Fac x4) -4/Factory (discovered 4 exits: Res x4) History --------- Turn | Location | Event 7 | -11/Scrapyard | Discovered new exit (range 3) 89 | -11/Scrapyard | Entered Materials 140 | -10/Materials | Discovered new exit (range 7) 170 | -10/Materials | Met 8R-AWN 203 | -10/Materials | Entered Mines 204 | -10/Mines | Followed 8R-AWN into the Mines 276 | -10/Mines | Discovered new exit (range 5) 281 | -10/Mines | Entered Exiles 310 | -10/Exiles | Build established: Mutant 314 | -10/Exiles | Welcomed by 8R-AWN 331 | -10/Exiles | Met EX-HEX 471 | -10/Exiles | Met EX-DEC 519 | -10/Exiles | Learned location of Zion (-7) 670 | -10/Exiles | Build established: Hauler-Mutant 730 | -10/Exiles | Met EX-BIN 763 | -10/Exiles | Aligned with FarCom system 766 | -10/Exiles | Given EX-Vault access code 821 | -10/Exiles | Opened EX-Vault 838 | -10/Exiles | Found Field Lobotomy Kit 892 | -10/Exiles | Warned to stay clear of 0b10 Research branches 990 | -10/Exiles | Learned about 8R-AWN's background 1067 | -10/Exiles | Discovered new exit (range 14) 1099 | -10/Exiles | Left Exiles lab with Field Lobotomy Kit 1099 | -10/Exiles | Entered Mines 1170 | -9/Mines | Learned Materials trap positions 1587 | -9/Mines | Found a damaged Exp. Sensor Array with a note attached 1591 | -9/Mines | Found Prototype Device 1722 | -9/Mines | Discovered new exit (range 4) 1864 | -9/Mines | Discovered new exit (range 8) 1945 | -9/Mines | YI-UF0 nonchalantly dropped a Grenade Launcher on the ground 2691 | -9/Mines | Destroyed YI-UF0 3147 | -9/Mines | Found Prototype Storage 3297 | -9/Mines | Entered Materials 3297 | -8/Materials | Evolved 4 slots: Utility x4 3298 | -8/Materials | Loaded intel: 11 trap records 3394 | -8/Materials | Identified YI-UF0's Bottomless Matter Pit 3736 | -8/Materials | Build established: Mutant 4102 | -8/Materials | Identified Exp. Sensor Array 4307 | -8/Materials | Build established: Hauler-Mutant 4399 | -8/Materials | Discovered new exit (range 10) 5359 | -8/Materials | Repaired Exp. Sensor Array? 5417 | -8/Materials | Discovered new exit (range 15) 5812 | -8/Materials | Discovered new exit (range 14) 6142 | -8/Materials | Garrison activated, responded to threat 6287 | -8/Materials | Identified exit to Garrison 6287 | -8/Materials | Entered Garrison 6693 | -8/Garrison | Triggered checkpoint 7084 | -8/Garrison | Discovered new exit (range 14) 7126 | -8/Garrison | Installed Relay Interface Framework 7232 | -8/Garrison | Triggered checkpoint 7325 | -8/Garrison | Discovered new exit (range 12) 7514 | -8/Garrison | Triggered checkpoint 7809 | -8/Garrison | Discovered new exit (range 10) 7866 | -8/Garrison | Triggered checkpoint 7894 | -8/Garrison | Garrison Relay disabled 8183 | -8/Garrison | Garrison Relay disabled 8409 | -8/Garrison | Garrison Relay disabled 8744 | -8/Garrison | Build established: Bothacker-Mutant 8961 | -8/Garrison | Garrison Relay disabled 9049 | -8/Garrison | Entered Materials 9791 | -8/Materials | Discovered new exit (range 7) 10090 | -8/Materials | Lost 5 parts (2n3w) 10381 | -8/Materials | Core integrity fell below 50% 11049 | -8/Materials | First assault squad dispatched 11148 | -8/Materials | Destroyed 7 combat bots 11175 | -8/Materials | Discovered new exit (range 14) 11211 | -8/Materials | Entered Factory 11211 | -7/Factory | Evolved 2 slots: Utility x2 11212 | -7/Factory | Identified exit to Lower Caves 11252 | -7/Factory | Discovered new exit (range 12) 11290 | -7/Factory | Sucked down chute 11290 | -7/Factory | Entered Waste 11350 | -7/Waste | Spotted C-40 Crusher 11357 | -7/Waste | Spotted C-40 Crusher 11361 | -7/Waste | Spotted C-40 Crusher 11370 | -7/Waste | Crushed by Compactor (1 part destroyed, 1 dropped) 11388 | -7/Waste | Crushed by Compactor (1 part destroyed, 1 dropped) 11410 | -7/Waste | Spotted C-40 Crusher 11410 | -7/Waste | Spotted C-40 Crusher 11412 | -7/Waste | Crushed by Compactor (0 parts destroyed, 1 dropped) 11500 | -7/Waste | Spotted C-40 Crusher 11535 | -7/Waste | Warlord forces began an assault 11542 | -7/Waste | Allies destroyed C-40 Crusher 11546 | -7/Waste | Allies destroyed C-40 Crusher 11549 | -7/Waste | Allies destroyed C-40 Crusher 11567 | -7/Waste | Allies destroyed C-40 Crusher 11571 | -7/Waste | Allies destroyed C-40 Crusher 11624 | -7/Waste | Allies destroyed C-40 Crusher 11929 | -7/Waste | Discovered new exit (range 11) 12581 | -7/Waste | Entered Factory 12775 | -7/Factory | Repaired Broken Arm. Medium Treads? 12888 | -7/Factory | Repaired Energy Well? 13455 | -7/Factory | System corruption reached 10% 13485 | -7/Factory | Lost 5 parts (1n3u1w) 17121 | -7/Factory | Discovered new exit (range 11) 17241 | -7/Factory | Entered another Factory area 17241 | -6/Factory | Evolved 2 slots: Propulsion x2 17298 | -6/Factory | Found Prototype Processor 17298 | -6/Factory | Identified Exp. Targeting Computer 17549 | -6/Factory | Discovered new exit (range 8) 17567 | -6/Factory | Entered Lower Caves 17922 | -6/Lower Caves | Attracted the attention of an 0b10 checkpoint 18388 | -6/Lower Caves | Discovered new exit (range 13) 18410 | -6/Lower Caves | Entered another Lower Caves area 18495 | -6/Lower Caves | Lost 3 parts (2n1u) 18716 | -6/Lower Caves | Discovered new exit (range 10) 18898 | -6/Lower Caves | Learned 8 Factory zone layouts 19041 | -6/Lower Caves | Attracted the attention of an 0b10 checkpoint 19213 | -6/Lower Caves | Discovered new exit (range 6) 19268 | -6/Lower Caves | Entered Data Miner 19268 | -6/Data Miner | Discovered new exit (range 6) 19309 | -6/Data Miner | Met Data Miner 19351 | -6/Data Miner | Learned location of Section 7 (-2) 19351 | -6/Data Miner | Acquired the access code to Warlord's prototype stash 19396 | -6/Data Miner | Received God Mode back door access code from Data Miner 19442 | -6/Data Miner | Entered Proximity Caves 19444 | -5/Proximity Caves | Attracted the attention of an 0b10 checkpoint 19487 | -5/Proximity Caves | Lost 5 parts (2n3w) 19728 | -5/Proximity Caves | Escorted by Enhanced Grunt 19785 | -5/Proximity Caves | Lost 3 parts (1p2n) 19879 | -5/Proximity Caves | Learned 4 Factory zone layouts 19917 | -5/Proximity Caves | Discovered new exit (range 6) 19932 | -5/Proximity Caves | Entered Factory 19932 | -5/Factory | Accompanied by 1 ally 19932 | -5/Factory | Evolved 2 slots: Power x1, Propulsion x1 19933 | -5/Factory | Identified exit to Factory 20516 | -5/Factory | Sucked down chute 20516 | -5/Factory | Entered Waste 20526 | -5/Waste | Spotted C-40 Crusher 20533 | -5/Waste | Spotted C-40 Crusher 20643 | -5/Waste | Spotted C-40 Crusher 20645 | -5/Waste | Spotted C-40 Crusher 20652 | -5/Waste | Spotted C-40 Crusher 20673 | -5/Waste | Spotted C-40 Crusher 20691 | -5/Waste | Crushed by Compactor (1 part destroyed, 2 dropped) 20694 | -5/Waste | Crushed by Compactor (1 part destroyed, 1 dropped) 20904 | -5/Waste | Discovered new exit (range 12) 20917 | -5/Waste | Warlord forces began an assault 20991 | -5/Waste | Allies destroyed C-40 Crusher 21059 | -5/Waste | Allies destroyed C-40 Crusher 21076 | -5/Waste | Allies destroyed C-40 Crusher 21999 | -5/Waste | Entered Factory 23161 | -5/Factory | Discovered new exit (range 15) 23227 | -5/Factory | Entered Extension 23851 | -5/Extension | Rescued a captive Derelict 23851 | -5/Extension | Rescued a captive Derelict 23961 | -5/Extension | Repaired Arm. Heavy Treads 23987 | -5/Extension | Rescued a captive Derelict 24538 | -5/Extension | Spotted B-75 Beast 24554 | -5/Extension | Destroyed B-75 Beast 24565 | -5/Extension | Spotted B-75 Beast 24623 | -5/Extension | Destroyed B-75 Beast 24653 | -5/Extension | Lost 4 parts (2n1u1w) 24730 | -5/Extension | Build established: Hauler-Mutant 24752 | -5/Extension | Disrupted transfer network 24852 | -5/Extension | Central database locked down 24933 | -5/Extension | Rescued a captive Derelict 24933 | -5/Extension | Rescued a captive Derelict 24987 | -5/Extension | Rescued a captive Derelict 24987 | -5/Extension | Rescued a captive Derelict 25004 | -5/Extension | Identified exit to Cetus 25023 | -5/Extension | Rescued a captive Derelict 25135 | -5/Extension | Rescued A7 25169 | -5/Extension | Rescued a captive Derelict 25184 | -5/Extension | Rescued a captive Derelict 25350 | -5/Extension | Discovered exit to Factory (range 10) 25388 | -5/Extension | Entered Cetus 25388 | -5/Cetus | Accompanied by 14 allies (A7) 25393 | -5/Cetus | Acquired a Cetus Manufacturing Module code from A7 25409 | -5/Cetus | Spotted Cetus Guard 25409 | -5/Cetus | Spotted Cetus Guard 25411 | -5/Cetus | Spotted Cetus Guard 25427 | -5/Cetus | Destroyed Cetus Guard 25427 | -5/Cetus | Allies destroyed Cetus Guard 25437 | -5/Cetus | Allies destroyed Cetus Guard 25441 | -5/Cetus | Spotted Cetus Guard 25447 | -5/Cetus | Allies destroyed Cetus Guard 25595 | -5/Cetus | Started Cetus Manufacturing Module 25620 | -5/Cetus | Manufactured an Enhanced Grunt 25645 | -5/Cetus | Manufactured an Enhanced Grunt 25670 | -5/Cetus | Manufactured an Enhanced Grunt 25688 | -5/Cetus | Escorted A7 to Cetus Mainframe 25695 | -5/Cetus | Manufactured an Enhanced Grunt 25720 | -5/Cetus | Manufactured an Enhanced Grunt 25738 | -5/Cetus | Discovered new exit (range 16) 25766 | -5/Cetus | Entered Archives 25766 | -5/Archives | Accompanied by 8 allies (A7) 25771 | -5/Archives | Received a hacking code to weaken MAIN.C 25845 | -5/Archives | Discovered new exit (range 16) 25878 | -5/Archives | Discovered exit to Factory (range 14) 25894 | -5/Archives | Discovered new exit (range 14) 26021 | -5/Archives | Entered Hub_04(d) 26021 | -5/Hub_04(d) | Accompanied by 6 allies 26065 | -5/Hub_04(d) | Build established: Hacker-Mutant 26550 | -5/Hub_04(d) | System corruption reached 10% 26747 | -5/Hub_04(d) | Garrison activated, responded to threat 26858 | -5/Hub_04(d) | Disrupted transfer network 26920 | -5/Hub_04(d) | Destroyed 10 combat bots 26989 | -5/Hub_04(d) | Crushed by falling debris 27020 | -5/Hub_04(d) | Lost 3 parts (1u2w) 27063 | -5/Hub_04(d) | Garrison activated, responded to threat 27116 | -5/Hub_04(d) | Network Hub disabled 27118 | -5/Hub_04(d) | Spotted Lightning 27119 | -5/Hub_04(d) | Spotted Lightning 27119 | -5/Hub_04(d) | Spotted Lightning 27121 | -5/Hub_04(d) | Spotted Lightning 27121 | -5/Hub_04(d) | Spotted Lightning 27127 | -5/Hub_04(d) | Spotted Lightning 27142 | -5/Hub_04(d) | Spotted Lightning 27145 | -5/Hub_04(d) | Spotted Lightning 27147 | -5/Hub_04(d) | Spotted Lightning 27148 | -5/Hub_04(d) | Spotted Lightning 27148 | -5/Hub_04(d) | Spotted Lightning 27149 | -5/Hub_04(d) | Spotted Lightning 27161 | -5/Hub_04(d) | High security lockdown imminent 27165 | -5/Hub_04(d) | Entered Factory 27165 | -4/Factory | Evolved 2 slots: Power x1, Utility x1 27192 | -4/Factory | Lost 7 parts (3n2u2w) 27272 | -4/Factory | Build established: Hauler-Mutant 27342 | -4/Factory | Lost 3 parts (1p1u1w) 27887 | -4/Factory | Build established: Hacker-Mutant 27963 | -4/Factory | Core integrity fell below 50% 27997 | -4/Factory | Lost 20 parts (5p6n5u4w) 28073 | -4/Factory | Identified exit to Research 28074 | -4/Factory | Core integrity fell below 20% 28104 | -4/Factory | System corruption reached 10% 28122 | -4/Factory | Destroyed by P-70 Sage with High-powered Shock Rifle Last Messages --------------- 28042_ System corrupted: Matter fused (-5). 28042_ Stasis field depleted. 28049_ Acquired Adv. Datajack. 28057_ System corrupted: Component data lost. 28073_ Connecting with Terminal... >>Access(Main) Found 4 level access points to Research: (7,59) (183,55) (146,125) (34,17) Map updated. 28076_ Imp. Hacking Suite destroyed. 28079_ System corrupted: Matter fused (-7). 28084_ Terminal disabled. 28094_ System corrupted: Matter fused (-10). 28101_ P-70 Sage resets A-15 Conveyor, system corruption cleaned. 28108_ Detecting nearby Garrison Access. 28109_ Adv. Datajack destroyed. 28118_ 05YSF#=260#BEG84BMWAXOTQEOPNIMERQA3